bitfinex-derivatives/quotes_ETHF0:USTF0_20250620
["timestamp","ask_amount","ask_price","bid_price","bid_amount"]
[1750420665152,1.87044293,2550.7,2550.6,9.96008781]
[1750420666851,0.78401,2550.8,2550.7,0.78399]
[1750420667054,1.87107998,2550.8,2550.7,9.88799]
[1750420667655,0.78401,2550.8,2550.7,9.88799]
[1750420668353,1.87102967,2550.8,2550.7,9.88799]
[1750420669255,0.78401,2550.8,2550.7,9.88799]
[1750420670450,0.78408,2550.5,2550.4,3.2078]
[1750420670650,0.78412,2550.5,2550.4,7.8522]
[1750420671262,0.78417,2550.2,2550.1,4.4567]
[1750420671452,0.78417,2550.2,2550.1,12.3089]
[1750420671957,1.87134247,2550.2,2550.1,13.0931]
[1750420672360,0.78417,2550.2,2550.1,12.3089]
[1750420672762,0.78417,2550.2,2550.1,13.0931]
[1750420673259,0.78417,2550.2,2550.1,12.3089]
[1750420673955,0.78417,2550.2,2550.1,11.06]
[1750420676367,0.78417,2550.2,2550.1,3.2078]
[1750420676977,3.84954699,2550.2,2550.1,3.2078]
[1750420677277,0.78427,2549.9,2549.8,2.06229]
[1750420677763,0.78427,2549.9,2549.8,9.91449]
[1750420677966,0.78426,2550.0,2549.9,0.78423]
[1750420679473,0.7843,2549.9,2549.8,0.78428]
[1750420679672,0.7843,2549.9,2549.8,8.63648]
[1750420679975,0.7843,2549.9,2549.8,0.78428]
[1750420680777,0.7843,2549.8,2549.7,5.35913]
[1750420681173,0.78428,2550.0,2549.9,0.78424]
[1750420681379,5.16823,2550.3,2550.0,0.78423]
[1750420681680,0.78423,2550.1,2550.0,11.70180699]
[1750420681874,0.78423,2550.1,2550.0,3.84960699]
[1750420682073,0.78423,2550.1,2550.0,7.05740699]
[1750420682671,0.78423,2550.1,2550.0,3.99203]
[1750420683972,0.78423,2550.1,2550.0,5.32023]
[1750420684679,0.78423,2550.1,2550.0,4.536]
[1750420684876,0.78423,2550.1,2550.0,3.27713781]
[1750420686283,0.78419,2550.2,2550.1,0.78417]
[1750420686578,0.78417,2550.2,2550.1,7.8522]
[1750420686781,0.78417,2550.2,2550.1,9.1762]
[1750420687780,0.7842,2550.1,2550.0,0.06933781]
[1750420687977,4.49137699,2550.1,2550.0,0.06933781]
[1750420688173,10.69137699,2550.1,2550.0,7.81e-06]
[1750420688378,19.98474179,2550.1,2550.0,7.81e-06]
[1750420690297,23.05011878,2550.1,2550.0,7.81e-06]
[1750420691388,19.98474179,2550.1,2550.0,7.81e-06]
[1750420691779,19.99313175,2550.1,2550.0,7.81e-06]
[1750420692188,21.36193175,2550.1,2550.0,7.81e-06]
[1750420692379,24.42730874,2550.1,2550.0,7.81e-06]
[1750420692786,26.77741362,2550.1,2550.0,7.81e-06]
[1750420693183,24.42730874,2550.1,2550.0,7.81e-06]
[1750420694081,0.78445,2549.3,2549.2,0.6461]
[1750420694489,0.78445,2549.3,2549.2,8.4983]
[1750420698890,3.84982699,2549.3,2549.2,8.4983]
[1750420700090,3.84982699,2549.3,2549.2,8.56763781]
[1750420701094,0.78454,2549.0,2548.9,3.2078]
[1750420701591,0.78454,2549.0,2548.9,11.06]
[1750420702093,0.78454,2549.1,2549.0,0.78452]
[1750420702491,0.7845,2549.2,2549.1,0.7845]
[1750420702795,0.7845,2549.2,2549.1,5.14527699]
[1750420702986,0.7845,2549.2,2549.1,12.99747699]
[1750420703294,6.97845,2549.4,2549.3,0.78442]
[1750420703494,6.97845,2549.4,2549.3,2.07982]
[1750420703691,6.97845,2549.4,2549.3,9.93202]
[1750420704394,6.194,2549.5,2549.4,0.78442]
[1750420704595,3.2078,2549.6,2549.5,7.8522]
[1750420704798,3.2078,2549.6,2549.5,11.70196699]
[1750420704990,6.97833,2549.8,2549.7,0.78433]
[1750420705190,6.97833,2549.8,2549.7,8.63653]
[1750420706296,3.99209,2549.9,2549.8,0.7843]
[1750420706491,3.99209,2549.9,2549.8,9.9793]
[1750420706896,6.194,2550.1,2549.9,0.78423]
[1750420707097,6.9782,2550.1,2550.0,9.195]
[1750420708485,0.7842,2550.1,2550.0,9.97923]
[1750420708991,0.7842,2550.2,2550.1,0.7842]
[1750420709192,0.7842,2550.2,2550.1,2.1035]
[1750420709392,0.7842,2550.2,2550.1,9.9557]
[1750420714199,0.7842,2550.2,2550.1,9.1715]
[1750420715599,0.7842,2550.2,2550.1,9.24083781]
[1750420716701,0.7842,2550.2,2550.1,9.89503781]
[1750420725504,0.7842,2550.2,2550.1,13.88703781]
[1750420727806,0.7842,2550.2,2550.1,9.89503781]
[1750420729006,0.7842,2550.2,2550.1,10.67923781]
[1750420729307,0.7842,2550.2,2550.1,9.89503781]
[1750420729504,0.7842,2550.2,2550.1,10.67923781]
[1750420732108,0.7842,2550.2,2550.1,13.88703781]
[1750420732311,0.78412,2550.5,2550.4,0.7841]
[1750420732612,0.78412,2550.5,2550.4,8.6363]
[1750420734210,2.59202,2550.9,2550.4,11.06]
[1750420734408,0.78406,2550.6,2550.5,0.78405]
[1750420734804,1.87688136,2550.6,2550.5,8.63625]
[1750420735507,1.87688136,2550.6,2550.5,7.8522]
[1750420735715,4.94225835,2550.6,2550.5,7.8522]
[1750420737415,4.94225835,2550.6,2550.5,8.63628]
[1750420737604,1.87688136,2550.6,2550.5,8.63628]
[1750420740214,1.09282136,2550.6,2550.5,8.63628]
[1750420740515,1.87687136,2550.6,2550.5,8.63628]
[1750420741406,1.09282136,2550.6,2550.5,8.63628]
[1750420741607,1.87687136,2550.6,2550.5,8.63628]
[1750420743018,1.87687136,2550.6,2550.5,7.8522]
[1750420743213,4.94224835,2550.6,2550.5,7.8522]
[1750420744517,4.94224835,2550.6,2550.4,3.2078]
[1750420744518,0.78408,2550.5,2550.4,3.2078]
[1750420744717,1.47438,2550.5,2550.4,11.06]
[1750420745018,1.47438,2550.5,2550.4,11.84411]
[1750420746115,1.47438,2550.5,2550.4,8.63631]
[1750420749713,1.47438,2550.5,2550.3,0.674]
[1750420749714,0.78411,2550.4,2550.3,1.45813]
[1750420750218,0.78411,2550.4,2550.3,9.31033]
[1750420751218,0.78411,2550.5,2550.4,0.78408]
[1750420751714,0.78411,2550.5,2550.4,8.63628]
[1750420752020,0.78411,2550.5,2550.4,9.93498]
[1750420753120,0.78408,2550.5,2550.4,9.935]
[1750420753416,0.78408,2550.5,2550.4,8.6363]
[1750420755219,4.93982252,2550.5,2550.4,8.6363]
[1750420756620,1.87444553,2550.5,2550.4,8.6363]
[1750420760127,1.87444553,2550.5,2550.4,8.70563781]
[1750420761026,1.87444553,2550.5,2550.4,8.6363]
[1750420762130,1.87444553,2550.5,2550.3,0.06933781]
[1750420762131,0.78411,2550.4,2550.3,0.06933781]
[1750420762334,8.70777553,2550.4,2550.3,0.06933781]
[1750420762630,9.96997553,2550.4,2550.3,0.06933781]
[1750420763218,0.78417,2550.2,2550.1,0.7842]
[1750420763421,0.78417,2550.2,2550.1,8.6364]
[1750420763625,1.87453553,2550.2,2550.1,8.6364]
[1750420765128,1.09036553,2550.2,2550.1,8.6364]
[1750420765324,0.78417,2550.2,2550.1,8.6364]
[1750420767235,0.78417,2550.2,2550.1,7.8522]
[1750420767936,1.87501235,2550.2,2550.1,7.8522]
[1750420768140,1.87501235,2550.2,2550.1,8.6364]
[1750420768435,0.78417,2550.2,2550.1,8.6364]
[1750420771431,0.7842,2550.1,2550.0,0.78421]
[1750420771737,0.7842,2550.1,2550.0,8.63641]
[1750420772036,0.78423,2550.0,2549.9,5.98374]
[1750420772226,0.78423,2550.0,2549.9,13.83594]
[1750420773438,0.78423,2550.1,2550.0,0.7842]
[1750420784445,0.78423,2550.1,2550.0,2.145]
[1750420784847,0.78423,2550.1,2550.0,9.9972]
[1750420787650,1.87742164,2550.1,2550.0,9.9972]
[1750420789645,1.09319164,2550.1,2550.0,9.9972]
[1750420789846,0.7842,2550.2,2550.1,0.7842]
[1750420790152,1.87767613,2550.2,2550.1,2.1267]
[1750420795341,1.87767613,2550.2,2550.1,9.9789]
[1750420801156,1.87767613,2550.2,2550.1,2.1267]
[1750420802662,1.09347613,2550.2,2550.1,2.1267]
[1750420802953,1.87764613,2550.2,2550.1,5.19207699]
[1750420803159,1.09347613,2550.2,2550.1,5.19207699]
[1750420803746,0.78415,2550.3,2550.2,0.78417]
[1750420803965,1.87799495,2550.3,2550.2,5.30797]
[1750420804160,1.87799495,2550.3,2550.2,5.97107]
[1750420805560,1.87799495,2550.3,2550.2,2.76327]
[1750420806561,1.87799495,2550.3,2550.2,10.61547]
[1750420807062,1.87799495,2550.3,2550.2,9.29947]
[1750420807950,1.09384495,2550.3,2550.2,9.29947]
[1750420808356,1.09384495,2550.3,2550.2,10.67777]
[1750420808961,6.95011,2550.5,2550.4,0.78411]
[1750420809160,8.0435109,2550.5,2550.4,0.78411]
[1750420811064,6.166,2550.5,2550.4,8.63631]
[1750420811258,0.78405,2550.7,2550.4,11.06]
[1750420811458,0.78405,2550.7,2550.6,0.78402]
[1750420811666,1.09252234,2550.7,2550.6,8.63625]
[1750420811861,1.87654234,2550.7,2550.6,0.78405]
[1750420812466,1.87654234,2550.7,2550.6,8.63625]
[1750420812966,0.78405,2550.6,2550.5,0.78406]
[1750420813461,0.78414,2550.4,2550.2,0.6281]
[1750420813666,0.78414,2550.4,2550.3,7.8522]
[1750420814167,0.78414,2550.4,2550.3,0.78414]
[1750420816769,0.78414,2550.3,2550.2,1.41225]
[1750420817168,0.78414,2550.3,2550.2,9.26445]
[1750420818367,1.45472,2550.5,2550.4,0.78411]
[1750420818763,0.78414,2550.4,2550.3,0.78412]
[1750420819465,0.78409,2550.6,2550.5,0.78404]
[1750420819665,0.78409,2550.6,2550.5,8.63624]
[1750420820070,0.78409,2550.6,2550.5,9.26174]
[1750420820264,0.78409,2550.6,2550.5,10.60824]
[1750420820471,0.78404,2550.7,2550.6,0.78402]
[1750420820672,0.78404,2550.7,2550.6,2.03792]
[1750420820870,0.78404,2550.7,2550.6,9.89012]
[1750420822465,6.165,2550.8,2550.7,0.78402]
[1750420822666,6.165,2550.8,2550.7,9.89012]
[1750420823069,0.78399,2550.8,2550.7,13.09792]
[1750420823268,0.78398,2550.9,2550.8,0.78396]
[1750420823570,0.78398,2550.9,2550.8,1.44016]
[1750420823868,0.78398,2550.9,2550.8,9.29236]
[1750420824373,0.78398,2550.9,2550.8,10.64786]
[1750420825257,0.78398,2550.9,2550.8,9.8639]
[1750420825462,0.78398,2550.9,2550.8,10.64789]
[1750420826072,0.78398,2550.9,2550.8,9.8639]
[1750420826268,0.78398,2550.9,2550.8,8.5084]
[1750420826470,3.06537699,2550.9,2550.5,0.78406]
[1750420826672,5.02547699,2550.7,2550.5,7.8522]
[1750420826865,0.78408,2550.5,2550.4,3.8436]
[1750420827066,0.78417,2550.2,2550.1,3.2078]
[1750420827266,0.78417,2550.2,2550.1,3.992]
[1750420827466,0.78417,2550.2,2550.1,11.8442]
[1750420828272,0.78417,2550.3,2550.2,0.85348781]
[1750420828472,0.78417,2550.3,2550.2,9.37948781]
[1750420828667,0.78417,2550.3,2550.2,8.59533781]
[1750420829372,0.78417,2550.3,2550.2,9.37950781]
[1750420831072,0.78417,2550.3,2550.2,10.75810781]
[1750420833777,0.78417,2550.3,2550.2,9.97393781]
[1750420833969,0.78417,2550.3,2550.2,0.74313781]
[1750420834276,0.78427,2549.9,2549.8,3.2078]
[1750420834878,0.78427,2549.9,2549.8,3.9921]
[1750420836280,6.94927,2550.0,2549.9,0.78422]
[1750420837474,0.78427,2549.9,2549.8,3.2078]
[1750420837976,1.45337,2549.9,2549.8,3.9921]
[1750420841482,0.78427,2549.9,2549.8,3.9921]
[1750420841681,6.94927,2550.0,2549.9,0.78423]
[1750420842580,0.7842,2550.2,2550.1,0.78415]
[1750420843280,0.78423,2550.0,2549.9,0.6742]
[1750420843881,0.78423,2550.0,2549.9,1.45847]
[1750420844473,0.78423,2550.0,2549.9,12.37604699]
[1750420844680,6.95023,2550.1,2550.0,0.78423]
[1750420844883,6.95023,2550.1,2550.0,8.63643]
[1750420845178,6.95023,2550.1,2550.0,0.78423]
[1750420845585,6.95023,2550.1,2550.0,8.63643]
[1750420845786,6.95023,2550.1,2550.0,9.91953]
[1750420847184,6.95023,2550.1,2550.0,7.8522]
[1750420850093,6.95023,2550.1,2550.0,0.06933781]
[1750420851792,6.95023,2550.1,2550.0,0.85356781]
[1750420852194,0.78423,2550.1,2550.0,0.06933781]
[1750420856700,1.87828688,2550.1,2550.0,0.06933781]
[1750420857997,1.87835853,2550.1,2550.0,0.06933781]
[1750420860515,1.87835853,2550.1,2549.6,0.78432]
[1750420860516,0.78436,2549.7,2549.6,0.78432]
[1750420860704,0.78436,2549.7,2549.6,1.41712]
[1750420860905,0.78436,2549.7,2549.6,9.26932]
[1750420861109,0.78436,2549.7,2549.6,10.54332]
[1750420862009,0.78436,2549.7,2549.6,9.26932]
[1750420862215,0.78436,2549.7,2549.6,8.485]
[1750420862512,1.87940072,2549.7,2549.6,0.6328]
[1750420862706,0.78436,2549.6,2549.5,3.2078]
[1750420863011,1.87940072,2549.6,2549.5,3.2078]
[1750420863215,0.78436,2549.6,2549.5,3.2078]
[1750420863408,0.78454,2549.1,2549.0,3.2078]
[1750420863615,0.7845,2549.2,2549.1,0.78447]
[1750420863818,0.7845,2549.2,2549.1,9.98887]
[1750420864510,0.78448,2549.3,2549.2,0.78444]
[1750420864711,0.78439,2549.5,2549.4,8.6366]
[1750420866117,0.78439,2549.5,2549.4,7.8522]
[1750420867310,0.78445,2549.3,2549.2,0.6914]
[1750420867513,7.05762699,2549.3,2549.2,8.5436]
[1750420868107,3.99225,2549.3,2549.2,8.5436]
[1750420868519,3.99225,2549.3,2549.2,0.6914]
[1750420870114,3.99225,2549.3,2549.2,1.47588]
[1750420870323,3.99225,2549.3,2549.2,0.6914]
[1750420871519,3.99225,2549.3,2549.2,1.47588]
[1750420871719,3.99225,2549.3,2549.2,0.6914]
[1750420871923,3.99225,2549.3,2549.2,1.47588]
[1750420872219,3.99225,2549.3,2549.2,9.32808]
[1750420873718,0.78445,2549.3,2549.2,9.32808]
[1750420880027,0.78445,2549.3,2549.2,9.39741781]
[1750420882226,0.78445,2549.3,2549.2,10.67891781]
[1750420884530,3.2078,2549.6,2549.5,0.78439]
[1750420884718,3.2078,2549.6,2549.5,11.70196699]
[1750420885417,3.2078,2549.6,2549.5,12.37016699]
[1750420886427,3.2078,2549.9,2549.8,0.78429]
[1750420886630,0.78421,2550.2,2549.8,11.70186699]
[1750420886931,0.7842,2550.1,2550.0,8.63643]
[1750420887231,0.7842,2550.1,2550.0,9.91433]
[1750420887433,0.7842,2550.1,2550.0,1.2779]
[1750420887633,0.7842,2550.1,2550.0,2.06213]
[1750420888233,0.7842,2550.1,2550.0,1.2779]
[1750420888437,0.7842,2550.1,2550.0,9.1301]
[1750420890835,0.7842,2550.1,2550.0,9.91433]
[1750420891237,0.7842,2550.1,2550.0,9.1301]
[1750420891434,0.7842,2550.1,2550.0,7.8522]
[1750420893339,0.78429,2549.8,2549.7,3.2078]
[1750420893537,0.78429,2549.8,2549.7,11.06]
[1750420894834,0.78429,2549.8,2549.7,11.84433]
[1750420895337,0.78429,2549.8,2549.7,11.06]
[1750420899338,0.78429,2549.8,2549.7,11.84433]
[1750420900333,0.6633,2550.2,2549.7,11.06]
[1750420900533,6.143,2550.1,2550.0,8.6364]
[1750420901037,6.9272,2550.1,2550.0,10.5967]
[1750420901432,6.9272,2550.1,2550.0,10.66603781]
[1750420902835,3.2078,2550.3,2550.0,9.88183781]
[1750420903033,10.13497,2550.3,2550.2,7.8522]
[1750420903238,10.13497,2550.3,2550.2,8.63637]
[1750420903438,10.13497,2550.3,2550.2,0.78417]
[1750420903635,0.78417,2550.3,2550.2,8.63637]
[1750420904938,0.78417,2550.3,2550.2,9.98247]
[1750420907543,6.92714,2550.4,2550.3,0.78414]
[1750420907846,6.92711,2550.4,2550.3,8.63634]
[1750420908036,6.92711,2550.4,2550.3,13.02461699]
[1750420908344,6.92711,2550.4,2550.3,9.95924]
[1750420908732,0.6345,2550.6,2550.3,9.1751]
[1750420908940,0.6345,2550.6,2550.1,8.23365699]
[1750420908941,0.78411,2550.5,2550.4,13.15468]
[1750420910236,6.92608,2550.6,2550.5,0.78408]
[1750420910440,8.02402306,2550.6,2550.5,9.94688]
[1750420910634,45.185,2550.9,2550.7,0.78402]
[1750420910944,0.7839,2551.2,2551.1,0.78387]
[1750420911146,0.7839,2551.2,2551.1,8.63607]
[1750420911348,3.99166,2551.3,2551.2,0.78386]
[1750420911641,3.99163,2551.3,2551.2,8.63606]
[1750420912234,3.2078,2551.3,2551.2,9.16783872]
[1750420912434,3.06537699,2551.8,2551.2,11.44935571]
[1750420912639,9.66282661,2552.0,2551.7,7.8522]
[1750420912843,0.78368,2551.8,2551.7,7.8522]
[1750420913138,0.78371,2551.7,2551.6,0.78374]
[1750420913336,0.78371,2551.7,2551.6,0.53105]
[1750420913533,0.78371,2551.7,2551.6,8.38325]
[1750420913738,0.78371,2551.7,2551.6,0.53105]
[1750420913940,0.7838,2551.4,2551.3,2.74812]
[1750420914238,0.7838,2551.4,2551.3,3.27936541]
[1750420914437,0.7838,2551.4,2551.3,11.13156541]
[1750420914643,0.7838,2551.4,2551.3,9.07534541]
[1750420915042,0.7838,2551.4,2551.3,9.85917541]
[1750420915247,0.6885,2551.7,2551.3,8.5441]
[1750420915448,0.78377,2551.5,2551.4,9.16674234]
[1750420915641,0.78377,2551.5,2551.4,10.51144234]
[1750420915841,0.78377,2551.5,2551.4,9.72765234]
[1750420916145,0.78377,2551.5,2551.4,10.51145234]
[1750420916346,0.78377,2551.5,2551.4,8.38228816]
[1750420916847,0.78377,2551.5,2551.4,8.38229859]
[1750420917442,0.78377,2551.5,2551.4,8.38229654]
[1750420917642,0.78377,2551.5,2551.4,9.16609654]
[1750420917941,0.78377,2551.5,2551.4,8.636]
[1750420918148,0.78377,2551.5,2551.4,9.16561632]
[1750420918446,0.78377,2551.5,2551.4,8.636]
[1750420919254,0.78377,2551.5,2551.4,7.8522]
[1750420920647,0.78398,2550.9,2550.8,3.2078]
[1750420920837,1.95968,2551.2,2550.9,0.78394]
[1750420920838,0.78396,2551.0,2550.9,0.78394]
[1750420921243,0.78396,2551.0,2550.9,7.8522]
[1750420921938,0.78391,2551.1,2551.0,0.78392]
[1750420922143,0.6881,2551.3,2551.1,7.8522]
[1750420922343,1.47195,2551.3,2551.2,0.78386]
[1750420922544,6.91985,2551.3,2551.2,1.47536]
[1750420922845,6.91985,2551.3,2551.2,0.6915]
[1750420924249,6.136,2551.3,2551.2,9.32756]
[1750420924444,6.135,2551.5,2551.3,0.7838]
[1750420924752,0.78383,2551.4,2551.3,0.7838]
[1750420925249,0.78383,2551.4,2551.3,8.636]
[1750420925852,6.91878,2551.5,2551.4,0.7838]
[1750420926054,6.91878,2551.5,2551.4,8.636]
[1750420926655,6.91877,2551.5,2551.4,8.636]
[1750420927555,6.135,2551.5,2551.4,8.636]
[1750420929159,6.91877,2551.5,2551.4,8.636]
[1750420930356,9.98414699,2551.5,2551.4,7.8522]
[1750420931156,0.78383,2551.3,2551.2,0.6915]
[1750420931354,4.50507699,2551.4,2551.3,7.8522]
[1750420931861,0.78393,2551.1,2550.9,0.6373]
[1750420932060,0.78393,2551.1,2551.0,0.7839]
[1750420932261,0.78388,2551.2,2551.1,0.78385]
[1750420932457,0.78388,2551.2,2551.1,3.99165]
[1750420932757,0.78386,2551.3,2551.2,0.78383]
[1750420932951,0.78386,2551.3,2551.2,3.84920699]
[1750420933156,0.78386,2551.3,2551.2,8.63603]
[1750420937870,0.78386,2551.3,2551.2,8.70536781]
[1750420938872,0.78386,2551.3,2551.2,8.63603]
[1750420939866,0.78386,2551.3,2551.2,8.70536781]
[1750420940569,0.78383,2551.4,2551.3,0.78378]
[1750420940761,1.09480176,2551.5,2551.4,0.7838]
[1750420940966,1.0947927,2551.5,2551.4,7.8522]
[1750420941369,1.8785627,2551.5,2551.4,8.636]
[1750420941967,1.8785627,2551.5,2551.4,9.9807]
[1750420943470,1.8785627,2551.5,2551.4,8.636]
[1750420946175,1.8785627,2551.5,2551.4,9.9774]
[1750420948874,1.0947927,2551.5,2551.4,9.9774]
[1750420949375,1.8785627,2551.5,2551.4,9.9774]
[1750420951879,1.0947927,2551.5,2551.4,9.9774]
[1750420952081,1.8785627,2551.5,2551.4,9.9774]
[1750420952277,1.0947927,2551.5,2551.4,9.9774]
[1750420952475,1.8785627,2551.5,2551.4,9.9774]
[1750420952679,1.0947927,2551.5,2551.4,9.9774]
[1750420952978,1.8785627,2551.5,2551.4,9.9774]
[1750420954587,1.0947927,2551.5,2551.4,16.25057699]
[1750420954775,0.78377,2551.6,2551.5,0.78374]
[1750420955076,1.87890259,2551.6,2551.5,0.78374]
[1750420955281,1.87890259,2551.6,2551.5,8.63594]
[1750420956083,0.78377,2551.5,2551.4,3.99158]
[1750420956276,1.87890259,2551.5,2551.4,11.84378]
[1750420961079,1.87890259,2551.5,2551.4,8.63598]
[1750420961286,1.87890259,2551.5,2551.4,11.84378]
[1750420965584,1.87890259,2551.5,2551.4,13.10658]
[1750420968988,1.87890259,2551.5,2551.4,11.84378]
[1750420971882,1.87955594,2551.5,2551.4,11.84378]
[1750420972289,1.87955594,2551.5,2551.4,8.63598]
[1750420973986,1.87955594,2551.5,2551.4,9.99968]
[1750420975186,1.09578594,2551.5,2551.4,9.99968]
[1750420975382,1.09578594,2551.5,2551.4,13.06505699]
[1750420976091,6.9137,2551.8,2551.7,0.78371]
[1750420976287,1.87946932,2551.8,2551.7,8.63591]
[1750420976597,8.00946932,2551.8,2551.7,0.78371]
[1750420976792,3.2078,2552.0,2551.7,10.57811]
[1750420976990,3.2078,2552.0,2551.9,11.70122699]
[1750420977293,5.08691236,2552.0,2551.9,11.70122699]
[1750420977487,4.30329236,2552.0,2551.9,11.70122699]
[1750420978196,5.08691236,2552.0,2551.9,11.70122699]
[1750420978493,5.08691236,2552.0,2551.9,8.63585]
[1750420979494,5.08691236,2552.0,2551.9,7.8522]
[1750420979884,0.78365,2551.9,2551.8,0.78366]
[1750420980294,0.78365,2551.9,2551.8,8.63586]
[1750420980491,0.78365,2551.9,2551.8,7.8522]
[1750420980799,0.78371,2551.7,2551.6,3.2078]
[1750420981289,3.84908699,2551.7,2551.6,3.2078]
[1750420981490,4.94269726,2551.7,2551.6,3.2078]
[1750420982096,4.94267766,2551.7,2551.6,3.2078]
[1750420982496,3.84908699,2551.7,2551.6,3.2078]
[1750420982993,0.78371,2551.7,2551.6,3.99154]
[1750420983296,0.78371,2551.7,2551.6,3.2078]
[1750420983500,8.00727275,2551.7,2551.6,3.2078]
[1750420983696,11.07264974,2551.7,2551.6,3.2078]
[1750420985298,8.00727275,2551.7,2551.6,3.2078]
[1750420987197,8.00727275,2551.7,2551.6,3.99154]
[1750420987499,8.00727275,2551.7,2551.6,3.2078]
[1750420987798,8.00727275,2551.7,2551.6,3.99154]
[1750420988098,8.00727275,2551.7,2551.6,0.78374]
[1750420988896,0.78378,2551.6,2551.5,0.78374]
[1750420989090,0.78378,2551.6,2551.5,8.63594]
[1750420989389,0.78378,2551.6,2551.5,0.78374]
[1750420991495,6.91374,2551.7,2551.6,0.78374]
[1750420992196,6.91374,2551.7,2551.6,8.63594]
[1750420992403,6.91374,2551.7,2551.6,9.96854]
[1750420992698,0.78374,2551.7,2551.6,9.96854]
[1750420993001,0.78374,2551.7,2551.6,10.03787781]
[1750420993799,0.78374,2551.7,2551.6,9.96854]
[1750420997694,0.78371,2551.8,2551.7,0.78367]
[1750420997999,0.78367,2551.9,2551.8,0.78368]
[1750420998200,0.78367,2551.9,2551.8,2.12928]
[1750420998508,1.87622195,2551.9,2551.8,9.98148]
[1750420999510,1.09255195,2551.9,2551.8,9.98148]
[1750421001108,6.91361,2552.1,2552.0,0.78362]
[1750421001301,7.22238128,2552.1,2552.0,0.78362]
[1750421001502,6.13,2552.1,2552.0,8.63582]
[1750421001710,6.13,2552.1,2552.0,9.94772]
[1750421002699,3.99125,2552.6,2552.3,1.95878]
[1750421002901,3.2078,2552.6,2552.5,8.63567]
[1750421003403,3.2078,2552.6,2552.5,9.94757]
[1750421003603,3.2078,2552.6,2552.5,9.1641]
[1750421003901,3.2078,2552.6,2552.5,8.63567]
[1750421004101,3.99123,2552.6,2552.5,8.63567]
[1750421004406,3.2078,2552.6,2552.5,8.63567]
[1750421004901,3.99123,2552.6,2552.5,8.63567]
[1750421005307,3.2078,2552.6,2552.5,8.63567]
[1750421006603,0.7834,2552.8,2552.7,0.7834]
[1750421007307,6.90837,2552.9,2552.8,0.78337]
[1750421007906,3.99106,2553.3,2552.9,1.95836]
[1750421008111,10.11506,2553.3,2553.2,0.78325]
[1750421008517,9.3318,2553.3,2553.2,0.78325]
[1750421009514,1.3474,2553.7,2553.2,0.78325]
[1750421009515,3.90847481,2554.6,2553.4,3.2078]
[1750421009707,3.06537699,2554.3,2553.9,11.06]
[1750421010005,3.06537699,2554.1,2554.0,0.78301]
[1750421010207,3.06537699,2554.1,2553.9,3.2078]
[1750421010406,6.7514,2554.0,2553.6,3.2078]
[1750421010600,3.84847699,2553.7,2553.6,3.2078]
[1750421011199,3.84847699,2553.7,2553.0,3.06537699]
[1750421011200,3.06537699,2553.7,2553.3,3.991]
[1750421011408,0.78316,2553.5,2553.3,11.8432]
[1750421011605,8.1411,2553.6,2553.3,11.8432]
[1750421011806,8.92424,2553.6,2553.4,0.78319]
[1750421012012,8.92424,2553.6,2553.3,11.8432]
[1750421012407,8.1411,2553.6,2553.3,11.8432]
[1750421012711,0.78319,2553.4,2553.3,3.2078]
[1750421012907,0.78318,2553.5,2553.3,3.2078]
[1750421013109,1.3545,2553.4,2553.3,3.2078]
[1750421013306,2.13769,2553.4,2553.3,3.2078]
[1750421013613,0.78323,2553.3,2553.0,3.99109]
[1750421013813,1.3545,2553.3,2553.1,0.78328]
[1750421014013,0.6875,2553.2,2553.1,0.78328]
[1750421014510,0.6875,2553.2,2553.0,3.9911]
[1750421014814,0.6875,2553.2,2553.1,0.78328]
[1750421015306,6.8105,2553.2,2553.1,0.78328]
[1750421016812,7.59375,2553.2,2553.1,0.78328]
[1750421017110,6.8105,2553.2,2553.1,0.78328]
[1750421018015,7.59375,2553.2,2553.1,0.78328]
[1750421020012,0.06933781,2553.4,2553.3,0.78322]
[1750421020215,0.06933781,2553.4,2553.3,14.90859699]
[1750421020412,0.72563781,2553.4,2553.3,14.90859699]
[1750421022012,0.78302,2554.0,2553.6,1.95783]
[1750421022207,0.78302,2554.0,2553.9,3.2078]
[1750421022813,6.90502,2554.0,2553.9,3.2078]
[1750421023318,6.90502,2554.0,2553.9,3.99084]
[1750421023713,0.6563,2554.2,2553.9,3.2078]
[1750421023918,6.122,2554.1,2554.0,0.78299]
[1750421024211,6.122,2554.1,2553.9,3.99082]
[1750421024416,2.35010488,2555.2,2554.5,3.2078]
[1750421024618,1.95585,2556.2,2555.1,11.06]
[1750421024819,3.06537699,2555.8,2555.3,7.8522]
[1750421025011,3.2078,2556.0,2555.2,4.4942]
[1750421025012,0.78248,2555.7,2555.2,4.4942]
[1750421025322,9.10711,2555.7,2555.5,3.2078]
[1750421025620,12.17248699,2555.7,2555.5,3.2078]
[1750421025822,71.43572,2556.4,2555.5,3.2078]
[1750421025823,0.78245,2555.8,2555.5,3.2078]
[1750421026120,6.402,2555.8,2555.5,3.99033]
[1750421026320,7.18446,2555.8,2555.5,3.99033]
[1750421026818,7.18446,2555.8,2555.5,3.2078]
[1750421026819,6.402,2555.8,2555.5,3.2078]
[1750421027118,0.78248,2555.7,2555.5,3.2078]
[1750421027421,6.402,2555.8,2555.5,3.2078]
[1750421027422,0.78252,2555.6,2555.5,3.2078]
[1750421027827,7.1835,2555.7,2555.5,3.2078]
[1750421029424,0.78251,2555.6,2555.5,3.2078]
[1750421029922,6.47033781,2555.7,2555.5,3.2078]
[1750421030725,0.78252,2555.6,2555.5,3.2078]
[1750421033428,0.78252,2555.6,2555.5,3.2078]
[1750421034434,7.18152,2555.6,2555.5,3.2078]
[1750421035333,0.78261,2555.3,2555.2,3.99042]
[1750421035618,0.78261,2555.3,2555.2,11.84262]